{"text_format":"1","workbook":"xlsx","n_sheets":4,"sheets":["CLASSIFICAÇÃO GERAL 2024","jan2025","fev2025","mar2025"],"not_rendered":{"charts":0,"images":2,"macros":1,"external_links":0,"defined_names":1,"comments":0,"pivot_tables":0},"unopened":[],"bounds":{"document_bytes":16777216,"sheet_cells":100000,"rows_first":2000,"rows_last":500,"rows_between":2000,"halvings":0,"cell_chars":16384,"cell_head_chars":4096},"cells_cut":0,"cells_raw":0,"read":"whole","date_system":"1900"}

{"sheet":"CLASSIFICAÇÃO GERAL 2024","index":0,"n_rows":144,"n_cols":5,"rows_kept":144,"cut":false,"hidden":false,"merged":[[0,0,0,4],[1,0,1,4]]}
["CLASSIFICAÇÃO GERAL ACPA – TEMPORADA DE VERÃO 2025 SÁBADO"]
["COLEIRO FIBRA","Pássaro","Proprietário","Origem","Pontos"]
["POSIÇÃO","NOME DO PÁSSARO","NOME DO PROPRIETÁRIO","ORIGEM (CIDADE)","PONTUAÇÃO"]
["1º","MÁGICO","ILSON","SÃO JOSÉ",{"$f":"26+30+26+30+30+28","v":170}]
["2º","PICA PAU","ADÃO","TRÊS RIOS",{"$f":"12+20+18+20+8+6+12+22+22","v":140}]
["3º","PROFESSOR","RODRIGO GONÇALVES","PETRÓPOLIS",{"$f":"24+22+30+30+28","v":134}]
["4º","CHOCALHO DE COBRA","LUCIMAR/LUIZ HENRIQUE","TRÊS RIOS",{"$f":"22+24+24+22+28","v":120}]
["5º","MACACO LOUCO","ILSON","SÃO JOSÉ",{"$f":"30+28+26+30","v":114}]
["6º","GRILO","RODRIGO/BRUNO BRANCO","PETRÓPOLIS",{"$f":"26+8+20+16+10+16","v":96}]
["7º","SOBRENATURAL","CH (FAMÍLIA MINGAL)","PARAÍBA DO SUL",{"$f":"14+18+14+18+22","v":86}]
["8º","RABO DE PEIXE","LUCIMAR/LUIZ HENRIQUE","TRÊS RIOS",{"$f":"22+24+22+14","v":82}]
["9º","BAIXARIA","FAMÍLIA HONORATO","PARAÍBA DO SUL",{"$f":"28+22+26","v":76}]
["10º","PEPE","EULER","TRÊS RIOS",{"$f":"20+28+28","v":76}]
["11º","ABENÇOADO","VINÍCIUS","MAR DE ESPANHA",{"$f":"30+30","v":60}]
["12º","BMW","JOÃO MARCOS","AREAL",{"$f":"24+6+26","v":56}]
["13º","GAGUINHO","LUCIMAR/LUIZ HENRIQUE","TRÊS RIOS",{"$f":"16+28+12","v":56}]
["14º","COISA LINDA","JUNINHO/MARCÃO","TRÊS RIOS",{"$f":"26+24","v":50}]
["15º","CARA PRETA","FÁBIO","TRÊS RIOS",{"$f":"20+18+6","v":44}]
["16º","ILUMINADO","GUSTAVO","PARAÍBA DO SUL",{"$f":"2+24+18","v":44}]
["17º","PROFETA","MARCELO","TRÊS RIOS",{"$f":"24+20","v":44}]
["18º","TOMA JACK","CH (FAMÍLIA MINGAL)","PARAÍBA DO SUL",{"$f":"22+22","v":44}]
["19º","GAGUINHO","FABINHO","TRÊS RIOS",{"$f":"16+24","v":40}]
["20º","VELOZ","ALISSON","TRÊS RIOS",{"$f":"14+10+16","v":40}]
["21º","RAGNAR","KLEBER","AREAL",{"$f":"30+8","v":38}]
["22º","V8","GILSON","SANTOS DUMONT",{"$f":"2+20+12","v":34}]
["23º","FILHÃO VULGO MALVADÃO","ALEX LAMA","PARAÍBA DO SUL",{"$f":"16+16","v":32}]
["24º","PELÉ","WILLIAM","TRÊS RIOS",{"$f":"16+16","v":32}]
["25º","CASCAVEL","BRUNO BRANCO/RODRIGO","PETRÓPOLIS",30]
["26º","FERRARI","GUSTAVO","PARAÍBA DO SUL",{"$f":"18+12","v":30}]
["27º","FILHÃO","RATINHO","VALENÇA",30]
["28º","MALUCO","ANDRÉ LUIS/ERICK","P. DO SUL/M. BARBOSA",30]
["29º","BEN 10","ERICK/ALESSANDRO","MATIAS BARBOSA",28]
["30º","BOB ESPONJA","DANILO HONORATO","PARAÍBA DO SUL",{"$f":"26+2","v":28}]
["31º","CARTOLA","CABRITO/JONAS","MATIAS BARBOSA",28]
["32º","DIAMANTE NEGRO","ILSON","SÃO JOSÉ",28]
["33º","ESPOLETA","RAFAEL","NITERÓI",28]
["34º","MAVERICK","MARCÃO","JUIZ DE FORA",28]
["35º","WOLVERINE","PAULINHO","TRÊS RIOS",{"$f":"24+4","v":28}]
["36º","IMPOSSÍVEL","ERICK","MATIAS BARBOSA",26]
["37º","LA PULGA","VINÍCIUS","MAR DE ESPANHA",26]
["38º","MUTLEY","MARCÃO","JUIZ DE FORA",26]
["39º","SASSÁ","FAMÍLIA MINGAL","PARAÍBA DO SUL",26]
["40º","TREME TERRA","KLEBER/RODRIGO","AREAL",26]
["41º","ASZEN","MARCELO/JOÃO","TRÊS RIOS",24]
["42º","FALCÃO","MAURO JR","TRÊS RIOS",24]
["43º","JOIA RARA","JUNINHO","TRÊS RIOS",24]
["44º","NOTA 1.000","SANDRINHO","TRÊS RIOS",{"$f":"14+10","v":24}]
["45º","SAGRADO","FABINHO","TRÊS RIOS",{"$f":"6+18","v":24}]
["46º","FILHO DO VENTO","ILSON","SÃO JOSÉ",22]
["47º","MAGNATA","THIAGO/EDGAR","TRÊS RIOS",{"$f":"14+8","v":22}]
["48º","MITO","THIAGO MARTINS","TRÊS RIOS",22]
["49º","CEIFADOR","LUCAS","TRÊS RIOS",20]
["50º","DRIVER","FABIANO","JUIZ DE FORA",20]
["51º","FABULOSO","HENRIQUE MORAES","SÃO JOSÉ",20]
["52º","MALUCO","RODRIGO/BRUNO BRANCO","PETRÓPOLIS",20]
["53º","MALVADÃO","BRUNO BRANCO","PETRÓPOLIS",20]
["54º","PESADELO","ALEX LAMA","PARAÍBA DO SUL",20]
["55º","AK TROVÃO","JOSÉ SÉRGIO","PARAÍBA DO SUL",{"$f":"8+10","v":18}]
["56º","CABALA","SANDRINHO","TRÊS RIOS",18]
["57º","JAGUAR","GILMAR","JUIZ DE FORA",18]
["58º","MANDRAKE","RODRIGO","SÃO JOSÉ",18]
["59º","MARRETA","GUTO","PARAÍBA DO SUL",18]
["60º","PODEROSO CHEFINHO","RODRIGO/BRUNO/ALEX LAMA","P. DO SUL/PETRÓPOLIS",18]
["61º","TALISMÃ","REGINALDO","PETRÓPOLIS",18]
["62º","CAVALO","FAMÍLIA HONORATO","PARAÍBA DO SUL",16]
["63º","JJ","SANDRINHO","TRÊS RIOS",16]
["64º","JOHN NETO","MATHEUS/JEFERSON","PARAÍBA DO SUL",16]
["65º","NEYMAR","JOSÉ SÉRGIO","PARAÍBA DO SUL",16]
["66º","TUBARÃO","MAURO JR","TRÊS RIOS",{"$f":"12+4","v":16}]
["67º","ZELDA","RODRIGO/BRUNO","PETRÓPOLIS",{"$f":"10+2+4","v":16}]
["68º","EXTRATERRESTRE","WANDER BOLOTARI","BICAS",14]
["69º","MARRETA","ROMÁRIO OLIVEIRA","PETROPOLIS",14]
["70º","MEGA SENA","CAIQUE","MAR DE ESPANHA",14]
["71º","REI ARTHUR","ALEX LAMA/ARTHUR","PARAÍBA DO SUL",14]
["72º","SHOGUM","REGINALDO","PETRÓPOLIS",14]
["73º","VENON","MURILO","TRÊS RIOS",14]
["74º","WOLVERINE","REGINALDO/FREDERICO","PETRÓPOLIS",{"$f":"12+2","v":14}]
["75º","BOLT","VITINHO","MATIAS BARBOSA",12]
["76º","CABALLO","GILSON","SANTOS DUMONT",12]
["77º","LAMBORGHINI","ALEXANDRE","SOUZA AGUIAR",12]
["78º","MAGO NEGRO","CLOVIS","TRÊS RIOS",12]
["79º","NINJA","ARTHUR LONGO","BICAS",12]
["80º","BICO BRANCO","HENRIQUE","PARAÍBA DO SUL",10]
["81º","DELEGADO","VALDECIR","PETRÓPOLIS",10]
["82º","GRÃO VIZIR","CICINHO","PARAÍBA DO SUL",10]
["83º","MALUQUINHO","GIBA","TRÊS RIOS",{"$f":"2+8","v":10}]
["84º","MC DONALD'S","JESSÉ JÚNIOR","TRÊS RIOS",{"$f":"4+6","v":10}]
["85º","MESTIÇO","CABRITO/JONAS","MATIAS BARBOSA",10]
["86º","NOVATO","LEANDRO","TRÊS RIOS",10]
["87º","PARDAL","LUCIANO","PARAÍBA DO SUL",10]
["88º","PERIGOSO","LUCAS","MAR DE ESPANHA",10]
["89º","BATATINHA","KLEBER","AREAL",8]
["90º","BOM DE BICO","GILSON","SANTOS DUMONT",8]
["91º","CAMPEÃO","FÁBIO","TRÊS RIOS",8]
["92º","FERRARI","REGINALDO","PETRÓPOLIS",{"$f":"4+4","v":8}]
["93º","HORUS","FAMÍLIA HONORATO","PARAÍBA DO SUL",8]
["94º","SAGAT","GUSTAVO","PARAÍBA DO SUL",8]
["95º","TARJA PRETA","JOÃO VITOR","MAR DE ESPANHA",{"$f":"6+2","v":8}]
["96º","V8","WILIAN","TRÊS RIOS",8]
["97º","DIAMANTE NEGRO","PAULO VITOR","PARAÍBA DO SUL",6]
["98º","LAS VEGAS","JONATAN","MATIAS BARBOSA",6]
["99º","MARGARINA","CLAUDIO MÁRCIO","TRÊS RIOS",6]
["100º","PATO DONALD","REGINALDO","PETRÓPOLIS",6]
["101º","ROJÃO","JOÃOZINHO","TRÊS RIOS",6]
["102º","SEM NOME","FABINHO","TRÊS RIOS",6]
["103º","ESCORPION","RODRIGO/BRUNO BRANCO","PETRÓPOLIS",4]
["104º","ILUMINADO","JUNINHO","TRÊS RIOS",4]
["105º","RÁPIDO","GILSON","SANTOS DUMONT",4]
["106º","SEM UNHA","VITINHO","MATIAS BARBOSA",4]
["107º","VULGO MALVADÃO","ALEX LAMA","PARAÍBA DO SUL",4]
["108º","AMOSTRADINHO","PAULINHO","TRÊS RIOS",2]
["109º","FERRARI","MAICON","TRÊS RIOS",2]
["110º","LOCOMOTIVA","CLOVIS","TRÊS RIOS",2]
["111º","SEBASTIÃO","ALISSON","TRÊS RIOS",2]
["112º"]
["113º"]
["114º"]
["115º"]
["116º"]
["117º"]
["118º"]
["119º"]
["120º"]
["121º"]
["122º"]
["123º"]
["124º"]
["125º"]
["126º"]
["127º"]
["128º"]
["129º"]
["130º"]
["131º"]
["132º"]
["133º"]
["134º"]
["135º"]
["135º"]
["136º"]
["137º"]
["138º"]
["139º"]
["140º"]

{"sheet":"jan2025","index":1,"n_rows":42,"n_cols":27,"rows_kept":42,"cut":false,"hidden":false,"merged":[[0,7,0,12],[0,14,0,19],[0,0,0,5],[0,21,0,26]]}
["04/01/2025 (SÁBADO)",null,null,null,null,null,null,"11/01/2025 (SÁBADO)",null,null,null,null,null,null,"18/01/2025 (SÁBADO)",null,null,null,null,null,null,"25/01/2025 (SÁBADO)"]
["POS.","PÁSSARO","PROPRIETÁRIO","ORIGEM","CANTOS","PONTOS",null,"POS.","PÁSSARO","PROPRIETÁRIO","ORIGEM","CANTOS","PONTOS",null,"POS.","PÁSSARO","PROPRIETÁRIO","ORIGEM","CANTOS","PONTOS",null,"POS.","PÁSSARO","PROPRIETÁRIO","ORIGEM","CANTOS","PONTOS"]
["1º","MALUCO","ANDRÉ LUIS/ERICK","P. DO SUL/M. BARBOSA",220,30,null,"1º","RAGNAR","KLEBER","AREAL",174,30,null,"1º","PROFESSOR","RODRIGO GONÇALVES","PETRÓPOLIS",192,30,null,"1º","PROFESSOR","RODRIGO GONÇALVES","PETRÓPOLIS",168,30]
["2º","MAVERICK","MARCÃO","JUIZ DE FORA",172,28,null,"2º","GAGUINHO","LUCIMAR/LUIZ HENRIQUE","TRÊS RIOS",150,28,null,"2º","CARTOLA","CABRITO/JONAS","MATIAS BARBOSA",141,28,null,"2º","ESPOLETA","RAFAEL","NITERÓI",166,28]
["3º","IMPOSSÍVEL","ERICK","MATIAS BARBOSA",152,26,null,"3º","SASSÁ","FAMÍLIA MINGAL","PARAÍBA DO SUL",147,26,null,"3º","GRILO","RODRIGO GONÇALVES","PETRÓPOLIS",137,26,null,"3º","TREME TERRA","KLEBER/RODRIGO","AREAL",157,26]
["4º","PROFESSOR","RODRIGO GONÇALVES","PETRÓPOLIS",148,24,null,"4º","CHUCALHO DE COBRA","LUCIMAR/LUIZ HENRIQUE","TRÊS RIOS",147,24,null,"4º","CHUCALHO DE COBRA","LUCIMAR/LUIZ HENRIQUE","TRÊS RIOS",136,24,null,"4º","WOLVERINE","PAULINHO","TRÊS RIOS",138,24]
["5º","CHUCALHO DE COBRA","LUCIMAR/LUIZ HENRIQUE","TRÊS RIOS",143,22,null,"5º","PROFESSOR","RODRIGO GONÇALVES","PETRÓPOLIS",138,22,null,"5º","MITO","THIAGO MARTINS","TRÊS RIOS",129,22,null,"5º","CHUCALHO DE COBRA","LUCIMAR/LUIZ HENRIQUE","TRÊS RIOS",130,22]
["6º","DRIVER","FABIANO","JUIZ DE FORA",139,20,null,"6º","V8","GILSON","SANTOS DUMONT",135,20,null,"6º","CEIFADOR","LUCAS","TRÊS RIOS",125,20,null,"6º","PEPE","EULER","TRÊS RIOS",128,20]
["7º","PODEROSO CHEFINHO","RODRIGO/BRUNO/ALEX LAMA","P. DO SUL/PETRÓPOLIS",131,18,null,"7º","SOBRENATURAL","CH FAMÍLIA MINGAL","PARAÍBA DO SUL",132,18,null,"7º","CABALA","SANDRINHO","TRÊS RIOS",121,18,null,"7º","SOBRENATURAL","CH (FAMÍLIA MINGAL)","PARAÍBA DO SUL",120,18]
["8º","GAGUINHO","LUCIMAR/LUIZ HENRIQUE","TRÊS RIOS",131,16,null,"8º","NEYMAR","JOSÉ SÉRGIO","PARAÍBA DO SUL",125,16,null,"8º","PELÉ","WILLIAM","TRÊS RIOS",118,16,null,"8º","JJ","SANDRINHO","TRÊS RIOS",116,16]
["9º","SOBRENATURAL","CH (FAMÍLIA MINGAL)","PARAÍBA DO SUL",130,14,null,"9º","MARRETA","ROMÁRIO OLIVEIRA","PETROPOLIS",124,14,null,"9º","SOBRENATURAL","CH (FAMÍLIA MINGAL)","PARAÍBA DO SUL",117,14,null,"9º","VELOZ","ALISSON","TRÊS RIOS",113,14]
["10º","PICA PAU","ADÃO","TRÊS RIOS",120,12,null,"10º","LAMBORGHINI","ALEXANDRE","SOUZA AGUIAR",120,12,null,"10º","V8","GILSON","SANTOS DUMONT",116,12,null,"10º","TUBARÃO","MAURO JR","TRÊS RIOS",113,12]
["11º","DELEGADO","VALDECIR","PETRÓPOLIS",109,10,null,"11º","GRÃO VIZIR","CICINHO","PARAÍBA DO SUL",113,10,null,"11º","MESTIÇO","CABRITO/JONAS","MATIAS BARBOSA",108,10,null,"11º","ZELDA","RODRIGO GONÇALVES","PETRÓPOLIS",112,10]
["12º","V8","WILIAN","TRÊS RIOS",95,8,null,"12º","SAGAT","GUSTAVO","PARAÍBA DO SUL",108,8,null,"12º","BOM DE BICO","GILSON","SANTOS DUMONT",107,8,null,"12º","RAGNAR","KLEBER","AREAL",100,8]
["13º","DIAMANTE NEGRO","PAULO VITOR","PARAÍBA DO SUL",80,6,null,"13º","ROJÃO","JOÃOZINHO","TRÊS RIOS",100,6,null,"13º","MARGARINA","CLAUDIO MÁRCIO","TRÊS RIOS",104,6,null,"13º","LAS VEGAS","JONATAN","MATIAS BARBOSA",95,6]
["14º","ILUMINADO","JUNINHO","TRÊS RIOS",78,4,null,"14º","WOLVERINE","PAULINHO","TRÊS RIOS",99,4,null,"14º","FERRARI","REGINALDO","PETRÓPOLIS",103,4,null,"14º","RÁPIDO","GILSON","SANTOS DUMONT",86,4]
["15º","V8","GILSON","SANTOS DUMONT",74,2,null,"15º","AMOSTRADINHO","PAULINHO","TRÊS RIOS",84,2,null,"15º","ZELDA","RODRIGO GONÇALVES","PETRÓPOLIS",100,2,null,"15º","LOCOMOTIVA","CLOVIS","TRÊS RIOS",94,2]
["16º","JOGA FOGO","WILLIAM","TRÊS RIOS",70,null,null,"16º","FÉ","ARTHUR","TRÊS RIOS",82,null,null,"16º","RABO DE PEIXE","LUCIMAR/LUIZ HENRIQUE","TRÊS RIOS",99,null,null,"16º","PALADINO","SAULO","TRÊS RIOS",86]
["17º","FÓRMULA 1","GILSON","SANTOS DUMONT",69,null,null,"17º","TREME TERRA","KLEBER/RODRIGO","AREAL",80,null,null,"17º","OUSADIA","LUCAS MACHADO","BEMPOSTA",94,null,null,"17º","TAZ","JONATAN","MATIAS BARBOSA",83]
["18º","SEM NOME","LÉO","PETRÓPOLIS",60,null,null,"18º","V8","UILIAN","TRÊS RIOS",77,null,null,"18º","REI DOS REIS","THIAGO MARTINS","TRÊS RIOS",84,null,null,"18º","V8","GILSON","SANTOS DUMONT",81]
["19º","MC DONALD'S","JESSÉ JÚNIOR","TRÊS RIOS",40,null,null,"19º","BICO BRANCO","FAMÍLIA MINGAL","PARAÍBA DO SUL",76,null,null,"19º","GAGUINHO","LUCIMAR/LUIZ HENRIQUE","TRÊS RIOS",82,null,null,"19º","?","RAFAEL DIAS","PARAÍBA DO SUL",78]
["20º",null,null,null,null,null,null,"20º","MAFIOSO","GUSTAVO SALOMÃO","TRÊS RIOS",73,null,null,"20º","WOLVERINE","REGINALDO","PETRÓPOLIS",73,null,null,"20º","PICA PAU","ADÃO","TRÊS RIOS",70]
["21º",null,null,null,null,null,null,"21º","ENCANTADO","EULER","TRÊS RIOS",69,null,null,"21º","RAGNAR","KLEBER","AREAL",73,null,null,"21º","SEM UNHA","VITINHO","MATIAS BARBOSA",66]
["22º",null,null,null,null,null,null,"22º","PCX","UILIAN/ISAAC","TRÊS RIOS",60,null,null,"22º","BUDDY POKER","PEZÃO","TRÊS RIOS",71,null,null,"22º","MALUQUINHO","GIBA","TRÊS RIOS",63]
["23º",null,null,null,null,null,null,"23º","ALUCINADO","RODRIGO GONÇALVES","PETRÓPOLIS",48,null,null,"23º","TRIBILIONÁRIO","LUCAS OLIVEIRA","BEMPOSTA",64,null,null,"23º","TRATOS","MAURO JR","TRÊS RIOS",56]
["24º",null,null,null,null,null,null,"24º",null,null,null,null,null,null,"24º","SUPER QUEBRA TUDO","ALISSON","TRÊS RIOS",63,null,null,"24º"]
["25º",null,null,null,null,null,null,"25º",null,null,null,null,null,null,"25º","ZÉ VAQUEIRO","WILLIAN","TRÊS RIOS",62,null,null,"25º"]
["26º",null,null,null,null,null,null,"26º",null,null,null,null,null,null,"26º","PALADINO","SAULO","TRÊS RIOS",55,null,null,"26º"]
["27º",null,null,null,null,null,null,"27º",null,null,null,null,null,null,"27º","CAPITÃO","GUSTAVO","PARAÍBA DO SUL",54,null,null,"27º"]
["28º",null,null,null,null,null,null,"28º",null,null,null,null,null,null,"28º","DEMBELE","ARTHUR","TRÊS RIOS",51,null,null,"28º"]
["29º",null,null,null,null,null,null,"29º",null,null,null,null,null,null,"29º","TÚLIO","ROMEU","TRÊS RIOS",28,null,null,"29º"]
["30º",null,null,null,null,null,null,"30º",null,null,null,null,null,null,"30º","SASSA","CH (FAMÍLIA MINGAL)","PARAÍBA DO SUL",24,null,null,"30º"]
["31º",null,null,null,null,null,null,"31º",null,null,null,null,null,null,"31º",null,null,null,null,null,null,"31º"]
["32º",null,null,null,null,null,null,"32º",null,null,null,null,null,null,"32º",null,null,null,null,null,null,"32º"]
["33º",null,null,null,null,null,null,"33º",null,null,null,null,null,null,"33º",null,null,null,null,null,null,"33º"]
["34º",null,null,null,null,null,null,"34º",null,null,null,null,null,null,"34º",null,null,null,null,null,null,"34º"]
["35º",null,null,null,null,null,null,"35º",null,null,null,null,null,null,"35º",null,null,null,null,null,null,"35º"]
["36º",null,null,null,null,null,null,"36º",null,null,null,null,null,null,"36º",null,null,null,null,null,null,"36º"]
["37º",null,null,null,null,null,null,"37º",null,null,null,null,null,null,"37º",null,null,null,null,null,null,"37º"]
["38º",null,null,null,null,null,null,"38º",null,null,null,null,null,null,"38º",null,null,null,null,null,null,"38º"]
["39º",null,null,null,null,null,null,"39º",null,null,null,null,null,null,"39º",null,null,null,null,null,null,"39º"]
["40º",null,null,null,null,null,null,"40º",null,null,null,null,null,null,"40º",null,null,null,null,null,null,"40º"]

{"sheet":"fev2025","index":2,"n_rows":42,"n_cols":27,"rows_kept":42,"cut":false,"hidden":false,"merged":[[0,0,0,5],[0,7,0,12],[0,14,0,19],[0,21,0,26]]}
["01/02/2025 (SÁBADO)",null,null,null,null,null,null,"08/02/2025 (SÁBADO)",null,null,null,null,null,null,"15/02/2025 (SÁBADO)",null,null,null,null,null,null,"22/02/2025 (SÁBADO)"]
["POS.","PÁSSARO","PROPRIETÁRIO","ORIGEM","CANTOS","PONTOS",null,"POS.","PÁSSARO","PROPRIETÁRIO","ORIGEM","CANTOS","PONTOS",null,"POS.","PÁSSARO","PROPRIETÁRIO","ORIGEM","CANTOS","PONTOS",null,"POS.","PÁSSARO","PROPRIETÁRIO","ORIGEM","CANTOS","PONTOS"]
["1º","ABENÇOADO","VINÍCIUS","MAR DE ESPANHA",214,30,null,"1º","ABENÇOADO","VINÍCIUS","MAR DE ESPANHA",145,30,null,"1º","MACACO LOUCO","ILSON","SÃO JOSÉ",197,30,null,"1º","FILHÃO","RATINHO","VALENÇA",250,30]
["2º","PROFESSOR","RODRIGO GONÇALVES","PETRÓPOLIS",184,28,null,"2º","PEPE","EULER","TRÊS RIOS",144,28,null,"2º","BEN 10","ERICK/ALESSANDRO","MATIAS BARBOSA",172,28,null,"2º","DIAMANTE NEGRO","ILSON","SÃO JOSÉ",209,28]
["3º","MUTLEY","MARCÃO","JUIZ DE FORA",182,26,null,"3º","BOB ESPONJA","DANILO HONORATO","PARAÍBA DO SUL",142,26,null,"3º","LA PULGA","VINÍCIUS","MAR DE ESPANHA",161,26,null,"3º","MÁGICO","ILSON","SÃO JOSÉ",190,26]
["4º","COISA LINDA","CELINHO","JUIZ DE FORA",157,24,null,"4º","ASZEN","MARCELO/JOÃO","TRÊS RIOS",134,24,null,"4º","JOIA RARA","JUNINHO","TRÊS RIOS",143,24,null,"4º","BMW","JOÃO MARCOS","AREAL",136,24]
["5º","SOBRENATURAL","CH (FAMÍLIA MINGAL)","PARAÍBA DO SUL",144,22,null,"5º","TOMA JACK","CH (FAMÍLIA MINGAL)","PARAÍBA DO SUL",132,22,null,"5º","TOMA JACK","CH (FAMÍLIA MINGAL)","PARAÍBA DO SUL",128,22,null,"5º","RABO DE PEIXE","LUCIMAR/LUIZ HENRIQUE","TRÊS RIOS",135,22]
["6º","CARA PRETA","FÁBIO","TRÊS RIOS",139,20,null,"6º","PICA PAU","ADÃO","TRÊS RIOS",127,20,null,"6º","GRILO","RODRIGO/BRUNO BRANCO","PETRÓPOLIS",123,20,null,"6º","PICA PAU","ADÃO","TRÊS RIOS",133,20]
["7º","JAGUAR","GILMAR","JUIZ DE FORA",130,18,null,"7º","CARA PRETA","FÁBIO","TRÊS RIOS",107,18,null,"7º","PICA PAU","ADÃO","TRÊS RIOS",109,18,null,"7º","TALISMÃ","REGINALDO","PETRÓPOLIS",130,18]
["8º","JOHN NETO","MATHEUS/JEFERSON","PARAÍBA DO SUL",129,16,null,"8º","VELOZ","ALISSON","TRÊS RIOS",105,16,null,"8º","PELÉ","WILLIAN","TRÊS RIOS",97,16,null,"8º","GRILO","RODRIGO/BRUNO","PETRÓPOLIS",126,16]
["9º","VENON","MURILO","TRÊS RIOS",126,14,null,"9º","MAGNATA","THIAGO/EDGAR","TRÊS RIOS",96,14,null,"9º","NOTA 1.000","SANDRINHO","TRÊS RIOS",95,14,null,"9º","SHOGUM","REGINALDO","PETRÓPOLIS",125,14]
["10º","WOLVERINE","REGINALDO/FREDERICO","PETRÓPOLIS",122,12,null,"10º","CABALLO","GILSON","SANTOS DUMONT",94,12,null,"10º","MAGO NEGRO","CLOVIS","TRÊS RIOS",89,12,null,"10º","GAGUINHO","LUCIMAR/LUIZ HENRIQUE","TRÊS RIOS",122,12]
["11º","VELOZ","ALISSON","TRÊS RIOS",118,10,null,"11º","PERIGOSO","LUCAS","MAR DE ESPANHA",93,10,null,"11º","AK TROVÃO","JOSÉ SERGIO","PARAÍBA DO SUL",83,10,null,"11º","NOTA 1.000","SANDRINHO","TRÊS RIOS",114,10]
["12º","GRILO","RODRIGO/BRUNO BRANCO","PETRÓPOLIS",116,8,null,"12º","AK TROVÃO","JOSÉ SÉRGIO","PARAÍBA DO SUL",80,8,null,"12º","HORUS","FAMÍLIA HONORATO","PARAÍBA DO SUL",81,8,null,"12º","MALUQUINHO","GIBA","TRÊS RIOS",101,8]
["13º","TARJA PRETA","JOÃO VITOR","MAR DE ESPANHA",112,6,null,"13º","SAGRADO","FABINHO","TRÊS RIOS",79,6,null,"13º","CARA PRETA","FÁBIO","TRÊS RIOS",81,6,null,"13º","MC DONALD'S","JESSÉ JÚNIOR","TRÊS RIOS",97,6]
["14º","SEM UNHA","VITINHO","MATIAS BARBOSA",110,4,null,"14º","FERRARI","REGINALDO","PETROPOLIS",64,4,null,"14º","MC DONALD'S","JESSÉ JÚNIOR","TRÊS RIOS",74,4,null,"14º","TUBARÃO","MAURO JR","TRÊS RIOS",93,4]
["15º","MALUQUINHO","GIBA","TRÊS RIOS",110,2,null,"15º","TARJA PRETA","JOÃO VITOR","MAR DE ESPANHA",64,2,null,"15º","BOB ESPONJA","FAMÍLIA HONORATO","PARAÍBA DO SUL",71,2,null,"15º","FERRARI","MAICON","TRÊS RIOS",88,2]
["16º","FORASTEIRO","FAMÍLIA MINGAL","PARAÍBA DO SUL",108,null,null,"16º","JOHN JONES","VALDO","TRÊS RIOS",60,null,null,"16º","PALADINO","SAULO","TRÊS RIOS",68,null,null,"16º","PETER PAN","ALEX LAMA/BIEL","PARAÍBA DO SUL",84]
["17º","PICA PAU","TIAGO","TRÊS RIOS",101,null,null,"17º","TUBARÃO","MAURO JR","TRÊS RIOS",45,null,null,"17º","SHOGUM","REGINALDO","PETRÓPOLIS",66,null,null,"17º","WOLVERINE","PAULINHO/ARTHUR","TRÊS RIOS",80]
["18º","JJ","SANDRINHO","TRÊS RIOS",98,null,null,"18º",null,null,null,null,null,null,"18º","MALUCO","FELIPE","TRÊS RIOS",59,null,null,"18º","BART","EULER","TRÊS RIOS",79]
["19º","TUBARÃO","MAURO JR","TRÊS RIOS",94,null,null,"19º",null,null,null,null,null,null,"19º","ARMAGEDON","FABIEL","TRÊS RIOS",59,null,null,"19º","COMANDANTE","RATINHO","VALENÇA",71]
["20º","REVELAÇÃO","LUCAS","TRÊS RIOS",85,null,null,"20º",null,null,null,null,null,null,"20º","TARJA PRETA","JOÃO VITOR","MAR DE ESPANHA",54,null,null,"20º","CARA PRETA","FÁBIO","TRÊS RIOS",70]
["21º","PERIGOSO","LUCAS","MAR DE ESPANHA",80,null,null,"21º",null,null,null,null,null,null,"21º","DESTINO","PEZÃO","TRÊS RIOS",51,null,null,"21º","FILHÃO","ALEX LAMA/BIEL","PARAÍBA DO SUL",65]
["22º","MENINO MALUCO","BRUNO RAPHAEL","TRÊS RIOS",74,null,null,"22º",null,null,null,null,null,null,"22º",null,null,null,null,null,null,"22º","FRENÉTICO","HENRIQUE","TRÊS RIOS",60]
["23º","NINJA","JÚLIO CÉSAR","PETRÓPOLIS",57,null,null,"23º",null,null,null,null,null,null,"23º",null,null,null,null,null,null,"23º","CHUMBO","FÁBIO","TRÊS RIOS",44]
["24º","SAGRADO","FABINHO","TRÊS RIOS",50,null,null,"24º",null,null,null,null,null,null,"24º",null,null,null,null,null,null,"24º"]
["25º","ARMAGEDON","FABIEL","TRÊS RIOS",42,null,null,"25º",null,null,null,null,null,null,"25º",null,null,null,null,null,null,"25º"]
["26º",null,null,null,null,null,null,"26º",null,null,null,null,null,null,"26º",null,null,null,null,null,null,"26º"]
["27º",null,null,null,null,null,null,"27º",null,null,null,null,null,null,"27º",null,null,null,null,null,null,"27º"]
["28º",null,null,null,null,null,null,"28º",null,null,null,null,null,null,"28º",null,null,null,null,null,null,"28º"]
["29º",null,null,null,null,null,null,"29º",null,null,null,null,null,null,"29º",null,null,null,null,null,null,"29º"]
["30º",null,null,null,null,null,null,"30º",null,null,null,null,null,null,"30º",null,null,null,null,null,null,"30º"]
["31º",null,null,null,null,null,null,"31º",null,null,null,null,null,null,"31º",null,null,null,null,null,null,"31º"]
["32º",null,null,null,null,null,null,"32º",null,null,null,null,null,null,"32º",null,null,null,null,null,null,"32º"]
["33º",null,null,null,null,null,null,"33º",null,null,null,null,null,null,"33º",null,null,null,null,null,null,"33º"]
["34º",null,null,null,null,null,null,"34º",null,null,null,null,null,null,"34º",null,null,null,null,null,null,"34º"]
["35º",null,null,null,null,null,null,"35º",null,null,null,null,null,null,"35º",null,null,null,null,null,null,"35º"]
["36º",null,null,null,null,null,null,"36º",null,null,null,null,null,null,"36º",null,null,null,null,null,null,"36º"]
["37º",null,null,null,null,null,null,"37º",null,null,null,null,null,null,"37º",null,null,null,null,null,null,"37º"]
["38º",null,null,null,null,null,null,"38º",null,null,null,null,null,null,"38º",null,null,null,null,null,null,"38º"]
["39º",null,null,null,null,null,null,"39º",null,null,null,null,null,null,"39º",null,null,null,null,null,null,"39º"]
["40º",null,null,null,null,null,null,"40º",null,null,null,null,null,null,"40º",null,null,null,null,null,null,"40º"]

{"sheet":"mar2025","index":3,"n_rows":42,"n_cols":34,"rows_kept":42,"cut":false,"hidden":false,"merged":[[0,0,0,5],[0,7,0,12],[0,14,0,19],[0,21,0,26],[0,28,0,33]]}
["01/03/2025 (SÁBADO)",null,null,null,null,null,null,"08/03/2025 (SÁBADO)",null,null,null,null,null,null,"15/03/2025 (SÁBADO)",null,null,null,null,null,null,"22/03/2025 (SÁBADO)",null,null,null,null,null,null,"29/03/2025 (SÁBADO)"]
["POS.","PÁSSARO","PROPRIETÁRIO","ORIGEM","CANTOS","PONTOS",null,"POS.","PÁSSARO","PROPRIETÁRIO","ORIGEM","CANTOS","PONTOS",null,"POS.","PÁSSARO","PROPRIETÁRIO","ORIGEM","CANTOS","PONTOS",null,"POS.","PÁSSARO","PROPRIETÁRIO","ORIGEM","CANTOS","PONTOS",null,"POS.","PÁSSARO","PROPRIETÁRIO","ORIGEM","CANTOS","PONTOS"]
["1º","MÁGICO","ILSON","SÃO JOSÉ",195,30,null,"1º","CASCAVEL","BRUNO BRANCO/RODRIGO","PETRÓPOLIS",193,30,null,"1º","MÁGICO","ILSON","SÃO JOSÉ",174,30,null,"1º","MÁGICO","ILSON","SÃO JOSÉ",176,30,null,"1º","MACACO LOUCO","ILSON","SÃO JOSÉ",183,30]
["2º","BAIXARIA","FAMÍLIA HONORATO","PARAÍBA DO SUL",163,28,null,"2º","MACACO LOUCO","ILSON","SÃO JOSÉ",185,28,null,"2º","CHOCALHO DE COBRA","LUCIMAR/LUIZ HENRIQUE","TRÊS RIOS",148,28,null,"2º","PEPE","EULER","TRÊS RIOS",157,28,null,"2º","MÁGICO","ILSON","SÃO JOSÉ",170,28]
["3º","COISA LINDA","JUNINHO/MARCÃO","TRÊS RIOS",158,26,null,"3º","MÁGICO","ILSON","SÃO JOSÉ",183,26,null,"3º","MACACO LOUCO","ILSON","SÃO JOSÉ",142,26,null,"3º","BAIXARIA","FAMÍLIA HONORATO","PARAÍBA DO SUL",145,26,null,"3º","BMW","JOÃO MARCOS","AREAL",137,26]
["4º","RABO DE PEIXE","LUCIMAR/LUIZ HENRIQUE","TRÊS RIOS",156,24,null,"4º","PROFETA","MARCELO","TRÊS RIOS",147,24,null,"4º","GAGUINHO","FABINHO","TRÊS RIOS",136,24,null,"4º","ILUMINADO","GUSTAVO","PARAÍBA DO SUL",130,24,null,"4º","FALCÃO","MAURO JR","TRÊS RIOS",130,24]
["5º","FILHO DO VENTO","ILSON","SÃO JOSÉ",143,22,null,"5º","RABO DE PEIXE","LUCIMAR/LUIZ HENRIQUE","TRÊS RIOS",127,22,null,"5º","BAIXARIA","DANILO HONORATO","PARAÍBA DO SUL",129,22,null,"5º","PICA PAU","ADÃO","TRÊS RIOS",113,22,null,"5º","PICA PAU","ADÃO","TRÊS RIOS",129,22]
["6º","MALVADÃO","BRUNO BRANCO","PETRÓPOLIS",128,20,null,"6º","MALUCO","RODRIGO/BRUNO BRANCO","PETRÓPOLIS",124,20,null,"6º","FABULOSO","HENRIQUE MORAES","SÃO JOSÉ",112,20,null,"6º","PROFETA","MARCELO","TRÊS RIOS",103,20,null,"6º","PESADELO","ALEX LAMA","PARAÍBA DO SUL",121,20]
["7º","FERRARI","GUSTAVO","PARAÍBA DO SUL",126,18,null,"7º","MANDRAKE","RODRIGO","SÃO JOSÉ",102,18,null,"7º","MARRETA","GUTO","PARAÍBA DO SUL",112,18,null,"7º","SAGRADO","FABINHO","TRÊS RIOS",88,18,null,"7º","ILUMINADO","GUSTAVO","PARAÍBA DO SUL",96,18]
["8º","GAGUINHO","FABINHO","TRÊS RIOS",126,16,null,"8º","FILHÃO VULGO MALVADÃO","ALEX LAMA","PARAÍBA DO SUL",100,16,null,"8º","GRILO","RODRIGO/BRUNO","PETRÓPOLIS",111,16,null,"8º","FILHÃO VULGO MALVADÃO","ALEX LAMA/BIEL","PARAÍBA DO SUL",87,16,null,"8º","CAVALO","FAMÍLIA HONORATO","PARAÍBA DO SUL",85,16]
["9º","EXTRATERRESTRE","WANDER BOLOTARI","BICAS",125,14,null,"9º","MEGA SENA","CAIQUE","MAR DE ESPANHA",94,14,null,"9º","RABO DE PEIXE","LUCIMAR/LUIZ HENRIQUE","TRÊS RIOS",105,14,null,"9º","REI ARTHUR","ALEX LAMA/ARTHUR","PARAÍBA DO SUL",73,14,null,"9º","FORA DA LEI","MARCOS VINÍCIUS","PARAÍBA DO SUL",17]
["10º","NINJA","ARTHUR LONGO","BICAS",120,12,null,"10º","FERRARI","GUSTAVO","PARAÍBA DO SUL",92,12,null,"10º","PICA PAU","ADÃO","TRÊS RIOS",98,12,null,"10º","BOLT","VITINHO","MATIAS BARBOSA",67,12,null,"10º"]
["11º","GRILO","RODRIGO/BRUNO","PETRÓPOLIS",113,10,null,"11º","BICO BRANCO","HENRIQUE","PARAÍBA DO SUL",86,10,null,"11º","PARDAL","LUCIANO","PARAÍBA DO SUL",81,10,null,"11º","NOVATO","LEANDRO","TRÊS RIOS",64,10,null,"11º"]
["12º","PICA PAU","ADÃO","TRÊS RIOS",112,8,null,"12º","MAGNATA","EDGAR","TRÊS RIOS",86,8,null,"12º","BATATINHA","KLEBER","AREAL",81,8,null,"12º","CAMPEÃO","FÁBIO","TRÊS RIOS",58,8,null,"12º"]
["13º","BMW","JOÃO MARCOS","AREAL",101,6,null,"13º","PICA PAU","ADÃO","TRÊS RIOS",81,6,null,"13º","SEM NOME","FABINHO","TRÊS RIOS",77,6,null,"13º","PATO DONALD","REGINALDO","PETRÓPOLIS",38,6,null,"13º"]
["14º","VULGO MALVADÃO","ALEX LAMA","PARAÍBA DO SUL",77,4,null,"14º","ESCORPION","RODRIGO/BRUNO BRANCO","PETRÓPOLIS",76,4,null,"14º","ZELDA","RODRIGO/BRUNO","PETRÓPOLIS",73,4,null,"14º",null,null,null,null,null,null,"14º"]
["15º","SEBASTIÃO","ALISSON","TRÊS RIOS",77,2,null,"15º","WOLVERINE","REGINALDO","PETRÓPOLIS",70,2,null,"15º","ILUMINADO","GUSTAVO","PARAÍBA DO SUL",59,2,null,"15º",null,null,null,null,null,null,"15º"]
["16º","NEYMAR","JOSÉ SERGIO","PARAÍBA DO SUL",53,null,null,"16º","ESPETO","KLEBER","AREAL",70,null,null,"16º","AR15","RONI","RIO DAS FLORES",55,null,null,"16º",null,null,null,null,null,null,"16º"]
["17º",null,null,null,null,null,null,"17º","ATREVIDO","REGINALDO","PETRÓPOLIS",40,null,null,"17º","PARAFAL","MAURO JR","TRÊS RIOS",49,null,null,"17º",null,null,null,null,null,null,"17º"]
["18º",null,null,null,null,null,null,"18º","SAGRADO","FABINHO","TRÊS RIOS",34,null,null,"18º","FREE FIRE","ALISSON","TRÊS RIOS",24,null,null,"18º",null,null,null,null,null,null,"18º"]
["19º",null,null,null,null,null,null,"19º","MISTÉRIO","EDUARDO","TRÊS RIOS",20,null,null,"19º",null,null,null,null,null,null,"19º",null,null,null,null,null,null,"19º"]
["20º",null,null,null,null,null,null,"20º",null,null,null,null,null,null,"20º",null,null,null,null,null,null,"20º",null,null,null,null,null,null,"20º"]
["21º",null,null,null,null,null,null,"21º",null,null,null,null,null,null,"21º",null,null,null,null,null,null,"21º",null,null,null,null,null,null,"21º"]
["22º",null,null,null,null,null,null,"22º",null,null,null,null,null,null,"22º",null,null,null,null,null,null,"22º",null,null,null,null,null,null,"22º"]
["23º",null,null,null,null,null,null,"23º",null,null,null,null,null,null,"23º",null,null,null,null,null,null,"23º",null,null,null,null,null,null,"23º"]
["24º",null,null,null,null,null,null,"24º",null,null,null,null,null,null,"24º",null,null,null,null,null,null,"24º",null,null,null,null,null,null,"24º"]
["25º",null,null,null,null,null,null,"25º",null,null,null,null,null,null,"25º",null,null,null,null,null,null,"25º",null,null,null,null,null,null,"25º"]
["26º",null,null,null,null,null,null,"26º",null,null,null,null,null,null,"26º",null,null,null,null,null,null,"26º",null,null,null,null,null,null,"26º"]
["27º",null,null,null,null,null,null,"27º",null,null,null,null,null,null,"27º",null,null,null,null,null,null,"27º",null,null,null,null,null,null,"27º"]
["28º",null,null,null,null,null,null,"28º",null,null,null,null,null,null,"28º",null,null,null,null,null,null,"28º",null,null,null,null,null,null,"28º"]
["29º",null,null,null,null,null,null,"29º",null,null,null,null,null,null,"29º",null,null,null,null,null,null,"29º",null,null,null,null,null,null,"29º"]
["30º",null,null,null,null,null,null,"30º",null,null,null,null,null,null,"30º",null,null,null,null,null,null,"30º",null,null,null,null,null,null,"30º"]
["31º",null,null,null,null,null,null,"31º",null,null,null,null,null,null,"31º",null,null,null,null,null,null,"31º",null,null,null,null,null,null,"31º"]
["32º",null,null,null,null,null,null,"32º",null,null,null,null,null,null,"32º",null,null,null,null,null,null,"32º",null,null,null,null,null,null,"32º"]
["33º",null,null,null,null,null,null,"33º",null,null,null,null,null,null,"33º",null,null,null,null,null,null,"33º",null,null,null,null,null,null,"33º"]
["34º",null,null,null,null,null,null,"34º",null,null,null,null,null,null,"34º",null,null,null,null,null,null,"34º",null,null,null,null,null,null,"34º"]
["35º",null,null,null,null,null,null,"35º",null,null,null,null,null,null,"35º",null,null,null,null,null,null,"35º",null,null,null,null,null,null,"35º"]
["36º",null,null,null,null,null,null,"36º",null,null,null,null,null,null,"36º",null,null,null,null,null,null,"36º",null,null,null,null,null,null,"36º"]
["37º",null,null,null,null,null,null,"37º",null,null,null,null,null,null,"37º",null,null,null,null,null,null,"37º",null,null,null,null,null,null,"37º"]
["38º",null,null,null,null,null,null,"38º",null,null,null,null,null,null,"38º",null,null,null,null,null,null,"38º",null,null,null,null,null,null,"38º"]
["39º",null,null,null,null,null,null,"39º",null,null,null,null,null,null,"39º",null,null,null,null,null,null,"39º",null,null,null,null,null,null,"39º"]
["40º",null,null,null,null,null,null,"40º",null,null,null,null,null,null,"40º",null,null,null,null,null,null,"40º",null,null,null,null,null,null,"40º"]